bitfinex-derivatives/quotes_SOLF0:USTF0_20241027
["timestamp","ask_amount","ask_price","bid_price","bid_amount"]
[1730053067261,2.8372,176.42,176.38,14.21778546]
[1730053067469,2.8372,176.42,176.39,5.33845544]
[1730053067759,2.8372,176.42,176.4,5.33845544]
[1730053067954,2.8372,176.42,176.38,14.21778546]
[1730053067955,2.8372,176.42,176.38,11.38018546]
[1730053068154,2.8372,176.42,176.39,8.17584258]
[1730053070450,2.8372,176.42,176.39,4.25629056]
[1730053070861,2.8372,176.42,176.39,2.8375]
[1730053071060,2.8372,176.42,176.4,3.9182429]
[1730053071360,2.8372,176.42,176.39,2.8375]
[1730053072361,2.8372,176.42,176.39,9.81768546]
[1730053073259,2.8372,176.42,176.39,15.15221741]
[1730053074962,4.4,176.49,176.39,12.31471741]
[1730053075158,6.98018546,176.45,176.4,6.98018546]
[1730053075361,6.98018546,176.47,176.42,6.98018546]
[1730053075661,2.8367,176.45,176.42,9.81718546]
[1730053077164,2.8367,176.45,176.42,2.837]
[1730053077967,2.8366,176.45,176.41,2.8371]
[1730053078550,6.98018546,176.47,176.41,2.8371]
[1730053078766,2.8368,176.44,176.42,2.837]
[1730053080476,2.8367,176.45,176.42,2.837]
[1730053080965,272.21342077,176.51,176.42,6.98018546]
[1730053081261,2.8363,176.47,176.44,2.8366]
[1730053081559,2.8362,176.48,176.46,2.8364]
[1730053083169,6.98018546,176.49,176.43,1.1709]
[1730053083368,6.98018546,176.48,176.43,1.1709]
[1730053083558,6.98018546,176.5,176.45,6.98018546]
[1730053084062,272.21342077,176.51,176.45,6.98018546]
[1730053084270,272.21342077,176.51,176.47,6.98018546]
[1730053084570,272.21342077,176.51,176.48,2.836]
[1730053084571,275.04922077,176.51,176.48,2.836]
[1730053084757,275.04922077,176.51,176.48,6.98018546]
[1730053085456,272.21342077,176.51,176.49,2.8358]
[1730053085662,272.21342077,176.51,176.48,6.98018546]
[1730053086068,2.8356,176.52,176.49,2.8358]
[1730053088470,2.8356,176.52,176.43,1.1709]
[1730053088471,1.2023,176.58,176.5,6.98018546]
[1730053088670,1.2023,176.58,176.51,6.98018546]
[1730053088671,6.98018546,176.56,176.51,6.98018546]
[1730053088968,4.4,176.57,176.51,6.98018546]
[1730053089169,2.8351,176.55,176.52,2.8354]
[1730053089566,6.98018546,176.56,176.51,6.98018546]
[1730053090163,2.8352,176.54,176.51,6.98018546]
[1730053090476,2.8352,176.54,176.5,9.81588546]
[1730053092170,2.8352,176.54,176.5,6.98018546]
[1730053092376,2.8352,176.54,176.51,2.8356]
[1730053093561,2.8348,176.57,176.54,2.8351]
[1730053096974,2.8348,176.57,176.53,6.98018546]
[1730053097172,2.8348,176.57,176.55,2.835]
[1730053098271,2.8346,176.58,176.55,2.835]
[1730053103586,4.38,176.62,176.55,2.835]
[1730053103780,6.98018546,176.6,176.55,2.835]
[1730053104285,2.8346,176.58,176.55,2.835]
[1730053107477,6.98018546,176.6,176.54,6.98018546]
[1730053107677,6.98018546,176.57,176.51,11.38018546]
[1730053108073,2.8351,176.55,176.52,2.8353]
[1730053108686,2.8351,176.55,176.53,2.8353]
[1730053110680,2.8354,176.53,176.51,2.8356]
[1730053111682,2.8352,176.54,176.51,2.8356]
[1730053112187,2.8352,176.54,176.51,9.81578546]
[1730053112393,2.8352,176.54,176.52,2.8355]
[1730053112590,4.38,176.6,176.53,6.98018546]
[1730053112792,11.36018546,176.6,176.54,9.81528546]
[1730053113794,2.8348,176.57,176.54,9.81528546]
[1730053114190,11.36018546,176.6,176.54,9.81528546]
[1730053114491,2.8349,176.56,176.54,2.8351]
[1730053116798,2.8349,176.56,176.54,9.81528546]
[1730053117699,2.8346,176.58,176.54,6.98018546]
[1730053118498,2.8346,176.58,176.55,2.8348]
[1730053118695,2.8346,176.58,176.54,6.98018546]
[1730053119898,2.8346,176.58,176.55,2.835]
[1730053120897,2.8346,176.58,176.56,2.8348]
[1730053121493,6.98018546,176.61,176.56,2.8348]
[1730053121494,2.8344,176.59,176.56,2.8348]
[1730053121895,2.83371909,176.64,176.57,6.98018546]
[1730053122098,2.8343,176.6,176.57,6.98018546]
[1730053122693,2.8343,176.6,176.57,9.81468546]
[1730053123710,2.8343,176.6,176.58,2.8345]
[1730053124412,2.8343,176.6,176.57,9.81478546]
[1730053125699,2.8343,176.6,176.57,14.19478546]
[1730053128007,4.38,176.66,176.57,14.19478546]
[1730053128204,6.98018546,176.63,176.57,14.19478546]
[1730053129405,2.8344,176.59,176.57,14.19478546]
[1730053130509,4.38,176.66,176.57,14.19478546]
[1730053130804,6.98018546,176.62,176.57,14.19478546]
[1730053131210,2.8341,176.61,176.58,6.98018546]
[1730053131411,6.98018546,176.64,176.58,6.98018546]
[1730053132401,2.8342,176.6,176.58,6.98018546]
[1730053134613,6.98018546,176.64,176.57,4.38]
[1730053134800,2.8345,176.58,176.56,11.36018546]
[1730053135312,6.98018546,176.61,176.56,14.19498546]
[1730053135516,2.8344,176.59,176.56,14.19498546]
[1730053135706,6.98018546,176.61,176.56,14.19498546]
[1730053136107,2.8343,176.6,176.56,14.19498546]
[1730053136314,6.98018546,176.61,176.56,14.19498546]
[1730053136808,2.8345,176.59,176.56,14.19498546]
[1730053137008,6.98018546,176.62,176.56,14.19498546]
[1730053137316,6.98018546,176.62,176.57,6.98018546]
[1730053138315,2.8343,176.59,176.57,9.81478546]
[1730053138515,6.98018546,176.64,176.58,6.98018546]
[1730053139409,2.8343,176.6,176.58,6.98018546]
[1730053140215,2.8343,176.6,176.58,9.81468546]
[1730053140913,2.8343,176.6,176.58,2.8345]
[1730053142126,6.98018546,176.61,176.55,4.0623]
[1730053142321,6.98018546,176.59,176.55,6.98018546]
[1730053142620,6.98018546,176.59,176.54,12.53388546]
[1730053142829,2.8348,176.57,176.55,2.835]
[1730053143516,2.8348,176.57,176.55,9.81518546]
[1730053143716,4.38,176.62,176.56,6.98018546]
[1730053143921,2.8342,176.6,176.58,9.81458546]
[1730053145522,2.8341,176.61,176.58,9.81458546]
[1730053147522,2.8342,176.6,176.58,9.81458546]
[1730053148225,2.8342,176.6,176.59,6.98018546]
[1730053149527,6.98018546,176.64,176.59,6.98018546]
[1730053149723,2.8342,176.61,176.59,6.98018546]
[1730053150531,2.8342,176.6,176.59,6.98018546]
[1730053150916,2.8342,176.6,176.58,2.8344]
[1730053151119,2.8345,176.59,176.57,6.98018546]
[1730053151428,6.98018546,176.63,176.57,6.98018546]
[1730053151619,2.8342,176.6,176.58,2.8345]
[1730053152026,6.98018546,176.64,176.58,2.8345]
[1730053152320,2.8342,176.6,176.58,9.81468546]
[1730053152520,6.98018546,176.61,176.55,2.8349]
[1730053152725,6.98018546,176.61,176.56,9.72485603]
[1730053152726,2.8346,176.58,176.56,9.72485603]
[1730053152923,6.98018546,176.61,176.56,4.38]
[1730053153137,6.98018546,176.61,176.56,7.2147]
[1730053153319,2.8344,176.59,176.57,6.98018546]
[1730053153725,2.8344,176.59,176.57,9.81478546]
[1730053155633,6.98018546,176.63,176.57,6.98018546]
[1730053155822,2.8344,176.59,176.57,6.98018546]
[1730053156021,2.8344,176.59,176.56,14.19488546]
[1730053156624,2.8344,176.59,176.56,11.36018546]
[1730053156928,2.8344,176.59,176.57,2.8347]
[1730053157438,2.8347,176.57,176.55,2.8348]
[1730053157629,2.8347,176.57,176.56,5.34718382]
[1730053158022,2.8346,176.58,176.56,5.34718382]
[1730053158227,2.8346,176.58,176.55,2.8348]
[1730053158523,2.8346,176.58,176.56,5.34764548]
[1730053158729,2.8346,176.58,176.55,2.8348]
[1730053158932,2.8346,176.58,176.56,8.18244138]
[1730053159127,2.8346,176.58,176.56,2.8348]
[1730053159530,2.8343,176.6,176.57,9.81468546]
[1730053162128,2.8343,176.6,176.58,5.34883945]
[1730053162329,2.8343,176.6,176.57,9.81468546]
[1730053162535,2.8343,176.6,176.58,5.34912754]
[1730053162732,2.8343,176.59,176.57,9.81468546]
[1730053162937,2.8343,176.59,176.58,5.34916976]
[1730053163939,2.8343,176.59,176.58,1.41776743]
[1730053164138,2.8343,176.59,176.58,5.34938476]
[1730053167341,2.8342,176.6,176.58,5.34938476]
[1730053167643,4.38,176.65,176.59,2.8343]
[1730053167841,6.98018546,176.64,176.59,2.8343]
[1730053168139,6.98018546,176.64,176.59,6.98018546]
[1730053168140,2.8341,176.61,176.59,6.98018546]
[1730053168342,414.95782049,176.67,176.59,6.98018546]
[1730053168639,2.834,176.62,176.59,6.98018546]
[1730053170444,6.98018546,176.63,176.59,6.98018546]
[1730053171047,2.834,176.61,176.59,9.81438546]
[1730053173447,426.31800595,176.67,176.6,12.32959982]
[1730053173634,426.31800595,176.67,176.6,6.98018546]
[1730053173937,426.31800595,176.67,176.61,2.8339]
[1730053174549,2.8338,176.63,176.61,2.8339]
[1730053174741,6.98018546,176.66,176.58,4.38]
[1730053174943,2.8342,176.6,176.59,5.34918159]
[1730053175140,2.8342,176.6,176.58,14.19458546]
[1730053175444,2.8342,176.6,176.59,5.34947633]
[1730053175831,2.8341,176.61,176.59,3.93179882]
[1730053176140,2.8341,176.61,176.58,9.81458546]
[1730053177143,2.8341,176.61,176.59,1.41765778]
[1730053177336,2.8341,176.61,176.58,9.81458546]
[1730053177639,2.8341,176.61,176.59,5.34974482]
[1730053177843,2.8341,176.61,176.58,9.81458546]
[1730053178056,2.8341,176.61,176.59,5.34976649]
[1730053178245,2.8341,176.61,176.58,9.81458546]
[1730053178543,2.8341,176.61,176.59,5.35011715]
[1730053178740,6.98018546,176.64,176.58,6.98018546]
[1730053178941,6.98018546,176.64,176.59,2.8342]
[1730053178942,2.834,176.61,176.59,2.8342]
[1730053179140,2.834,176.61,176.57,4.38]
[1730053179346,2.834,176.61,176.58,12.33065892]
[1730053179542,2.8341,176.61,176.59,5.35047346]
[1730053179741,2.8341,176.61,176.58,9.81458546]
[1730053179946,2.8341,176.61,176.59,5.35040457]
[1730053180146,2.8341,176.61,176.58,9.81458546]
[1730053180445,6.98018546,176.61,176.59,5.35110864]
[1730053180641,6.98018546,176.61,176.48,5.672]
[1730053180845,6.98018546,176.57,176.51,18.6260522]
[1730053181048,2.835,176.55,176.53,2.8352]
[1730053181346,6.98018546,176.57,176.54,11.64634769]
[1730053181550,2.8349,176.56,176.55,1.41787993]
[1730053181849,2.8349,176.56,176.55,5.35190599]
[1730053182549,2.8349,176.56,176.55,3.93402606]
[1730053182848,2.8349,176.56,176.55,5.35202303]
[1730053187451,4.38,176.61,176.55,5.35202303]
[1730053187752,6.98018546,176.58,176.56,5.35202303]
[1730053187953,2.8348,176.56,176.54,2.8351]
[1730053188142,2.8348,176.56,176.55,5.35354382]
[1730053188762,4.38,176.61,176.55,5.35354382]
[1730053188945,6.98018546,176.58,176.56,1.41798316]
[1730053189253,6.98018546,176.58,176.54,2.8351]
[1730053189449,4.38,176.61,176.55,3.93563794]
[1730053189647,6.98018546,176.58,176.56,1.41800926]
[1730053189843,6.98018546,176.58,176.54,2.8351]
[1730053190045,2.8348,176.57,176.54,2.8351]
[1730053190247,4.38,176.61,176.55,5.3536472]
[1730053190553,6.98018546,176.6,176.56,5.3536472]
[1730053190744,6.98018546,176.6,176.57,5.3536472]
[1730053190945,4.38,176.62,176.54,6.98018546]
[1730053191145,6.98018546,176.59,176.54,6.98018546]
[1730053191546,2.8348,176.57,176.54,9.81518546]
[1730053191845,4.38,176.62,176.54,9.81518546]
[1730053191846,4.36,176.62,176.54,9.81518546]
[1730053192050,6.98018546,176.59,176.54,9.81518546]
[1730053192554,2.8348,176.57,176.54,9.81518546]
[1730053192753,4.36,176.62,176.54,9.81518546]
[1730053192954,6.98018546,176.59,176.54,9.81518546]
[1730053193157,6.98018546,176.59,176.54,6.98018546]
[1730053193956,4.36,176.62,176.54,6.98018546]
[1730053194151,6.98018546,176.59,176.51,4.38]
[1730053194354,4.36,176.62,176.55,8.39810715]
[1730053194552,6.98018546,176.61,176.56,1.41792169]
[1730053194757,6.98018546,176.61,176.55,6.98018546]
[1730053194954,2.8344,176.59,176.57,2.8346]
[1730053195149,6.98018546,176.61,176.51,4.38]
[1730053195355,6.98018546,176.59,176.54,6.98018546]
[1730053195657,2.8346,176.58,176.55,8.18768446]
[1730053195962,2.8346,176.58,176.56,5.35278446]
[1730053196162,2.8346,176.58,176.55,2.8349]
[1730053196358,2.8346,176.58,176.56,5.3527145]
[1730053196656,2.8346,176.58,176.55,2.8349]
[1730053196960,2.8346,176.58,176.56,1.41790062]
[1730053197157,4.36,176.63,176.55,2.8349]
[1730053197357,4.36,176.63,176.56,5.35251447]
[1730053197358,6.98018546,176.6,176.56,5.35251447]
[1730053197561,2.8346,176.58,176.57,3.93460404]
[1730053197863,4.36,176.63,176.57,5.35246877]
[1730053198057,6.98018546,176.61,176.55,2.8349]
[1730053198255,6.98018546,176.61,176.56,5.35243556]
[1730053198451,2.8345,176.58,176.57,5.35243556]
[1730053198651,4.36,176.63,176.57,3.93457083]
[1730053198850,6.98018546,176.61,176.56,2.8348]
[1730053199055,6.98018546,176.61,176.57,3.93460055]
[1730053199359,4.36,176.63,176.56,2.8348]
[1730053199556,6.98018546,176.61,176.57,3.93459017]
[1730053199864,6.98018546,176.61,176.56,2.8348]
[1730053200057,4.36,176.63,176.56,2.8348]
[1730053200257,6.98018546,176.6,176.56,2.8348]
[1730053201267,6.98018546,176.59,176.56,2.8348]
[1730053201453,6.98018546,176.59,176.57,1.41782279]
[1730053201653,6.98018546,176.59,176.57,3.93440434]
[1730053201849,4.36,176.63,176.56,2.8348]
[1730053202054,4.36,176.63,176.54,6.98018546]
[1730053202055,6.98018546,176.61,176.57,5.35240825]
[1730053202259,6.98018546,176.61,176.57,2.8346]
[1730053202459,6.98018546,176.64,176.58,6.98018546]
[1730053202663,6.98018546,176.64,176.59,8.18612386]
[1730053202857,6.98018546,176.65,176.6,6.98018546]
[1730053203461,2.8338,176.63,176.59,2.8342]
[1730053203666,4.36,176.66,176.59,2.8342]
[1730053203968,6.98018546,176.64,176.59,2.8342]
[1730053204267,2.834,176.62,176.59,2.8342]
[1730053204568,4.36,176.66,176.59,2.8342]
[1730053204765,6.98018546,176.63,176.59,2.8342]
[1730053205165,2.834,176.62,176.59,2.8342]
[1730053205865,2.834,176.62,176.59,2.8343]
[1730053206053,2.8337,176.64,176.6,6.98018546]
[1730053206362,2.8337,176.64,176.62,6.98018546]
[1730053206573,2.8337,176.64,176.62,9.81408546]
[1730053207064,2.8337,176.64,176.62,6.98018546]
[1730053208572,2.8337,176.63,176.62,6.98018546]
[1730053208763,2.8337,176.63,176.61,2.834]
[1730053211364,2.8337,176.63,176.6,6.98018546]
[1730053211563,2.8337,176.63,176.6,9.81428546]
[1730053211875,6.98018546,176.64,176.6,6.98018546]
[1730053212166,6.98018546,176.64,176.61,2.8339]
[1730053212374,9.81378546,176.64,176.61,2.8339]
[1730053212673,2.8336,176.64,176.61,2.8339]
[1730053212870,6.98018546,176.66,176.6,6.98018546]
[1730053213079,2.8339,176.62,176.6,2.8341]
[1730053214460,2.8338,176.63,176.6,2.8341]
[1730053215875,6.98018546,176.64,176.6,2.8341]
[1730053216176,6.98018546,176.64,176.59,11.34018546]
[1730053216177,9.81378546,176.64,176.61,2.8339]
[1730053216370,2.8336,176.64,176.61,9.81408546]
[1730053216568,2.8335,176.65,176.62,2.8339]
[1730053217069,6.98018546,176.66,176.61,6.98018546]
[1730053217275,2.8336,176.64,176.61,9.81408546]
[1730053221473,2.834,176.62,176.59,14.17438546]
[1730053221672,2.834,176.62,176.59,7.1942]
[1730053222167,2.834,176.62,176.59,2.8342]
[1730053222473,6.98018546,176.61,176.58,2.8344]
[1730053222677,6.98018546,176.61,176.58,7.1944]
[1730053223173,9.81428546,176.61,176.58,7.1944]
[1730053224272,9.81428546,176.61,176.58,2.8344]
[1730053226872,6.98018546,176.62,176.57,11.34018546]
[1730053227076,6.98018546,176.62,176.59,2.8342]
[1730053227775,9.81418546,176.62,176.59,2.8342]
[1730053229784,2.834,176.62,176.59,2.8342]
[1730053230283,6.98018546,176.64,176.58,6.98018546]
[1730053230485,2.8338,176.63,176.6,9.81428546]
[1730053230885,2.8338,176.63,176.6,6.98018546]
[1730053233483,2.8337,176.63,176.6,6.98018546]
[1730053234081,6.98018546,176.65,176.6,6.98018546]
[1730053234282,2.8336,176.64,176.6,6.98018546]
[1730053234471,6.98018546,176.65,176.6,6.98018546]
[1730053234670,2.8337,176.64,176.61,2.8339]
[1730053235481,6.98018546,176.65,176.61,2.8339]
[1730053235678,2.8336,176.64,176.61,2.8339]
[1730053235889,4.36,176.68,176.62,2.8337]
[1730053236089,6.98018546,176.65,176.62,2.8337]
[1730053237384,2.8336,176.64,176.62,2.8337]
[1730053237790,2.8335,176.65,176.62,2.8337]
[1730053238289,271.92684639,176.7,176.65,2.8333]
[1730053238483,6.98018546,176.7,176.64,6.98018546]
[1730053238785,6.98018546,176.67,176.62,4.36]
[1730053239182,2.8335,176.65,176.62,7.1938]
[1730053239475,4.36,176.72,176.59,6.98018546]
[1730053239476,6.98018546,176.64,176.59,6.98018546]
[1730053239681,6.98018546,176.64,176.6,8.28981403]
[1730053239882,2.8338,176.63,176.6,7.1941]
[1730053240481,2.8339,176.62,176.59,7.1943]
[1730053241483,2.8339,176.62,176.59,2.8343]
[1730053241784,2.8342,176.6,176.57,7.1945]
[1730053242183,2.8342,176.6,176.57,2.8345]
[1730053242387,6.98018546,176.61,176.56,3.6373]
[1730053242591,6.98018546,176.61,176.47,5.6723]
[1730053242592,2.8347,176.57,176.54,4.36]
[1730053242780,2.8347,176.57,176.55,5.34851437]
[1730053242977,2.8347,176.57,176.54,4.36]
[1730053243278,2.8347,176.57,176.55,5.34851464]
[1730053243485,9.81518546,176.56,176.53,4.36]
[1730053243791,6.98018546,176.56,176.54,3.93058474]
[1730053244084,6.98018546,176.56,176.53,4.36]
[1730053244492,2.8351,176.55,176.51,17.88348546]
[1730053244690,2.8351,176.55,176.52,5.3484044]
[1730053244892,2.8351,176.55,176.53,5.3484044]
[1730053245090,2.8351,176.55,176.51,15.04798546]
[1730053245286,2.8351,176.55,176.52,5.34801612]
[1730053245487,6.98018546,176.56,176.53,5.34801612]
[1730053245792,2.8351,176.54,176.51,17.88358546]
[1730053245988,2.8351,176.54,176.52,5.34805058]
[1730053246180,2.8351,176.54,176.51,17.88358546]
[1730053246384,2.8351,176.54,176.52,5.34754193]
[1730053246591,2.8351,176.54,176.51,17.88358546]
[1730053246790,2.8353,176.53,176.52,5.34756813]
[1730053246983,6.98018546,176.53,176.48,4.36]
[1730053247187,6.98018546,176.51,176.49,3.93012348]
[1730053247387,2.8359,176.49,176.48,4.36]
[1730053247586,2.8359,176.49,176.48,9.70709527]
[1730053247890,2.8359,176.49,176.48,4.36]
[1730053248090,6.98018546,176.52,176.48,9.70713646]
[1730053248394,2.8355,176.52,176.49,5.34713646]
[1730053248691,2.8355,176.52,176.48,14.17618546]
[1730053248891,2.8355,176.52,176.49,5.34581299]
[1730053249096,2.8355,176.52,176.48,14.17618546]
[1730053249286,2.8355,176.52,176.49,5.34499716]
[1730053249490,2.8355,176.52,176.49,6.98018546]
[1730053250690,6.98018546,176.54,176.49,6.98018546]
[1730053250890,2.8356,176.52,176.49,6.98018546]
[1730053251883,60.7466,176.66,176.5,6.98018546]
[1730053252082,60.7466,176.66,176.55,6.98018546]
[1730053252083,6.98018546,176.6,176.55,6.98018546]
[1730053252485,2.835,176.55,176.54,6.98018546]
[1730053252789,2.835,176.55,176.52,2.8354]
[1730053253086,2.835,176.55,176.53,6.98018546]
[1730053254794,2.8348,176.57,176.54,2.8351]
[1730053255695,2.8348,176.57,176.53,6.98018546]
[1730053255895,2.8348,176.57,176.53,9.81548546]
[1730053256094,6.98018546,176.59,176.52,4.36]
[1730053256291,6.98018546,176.59,176.53,6.98018546]
[1730053256692,2.8349,176.56,176.53,6.98018546]
[1730053259297,2.8349,176.56,176.53,9.81548546]
[1730053260191,2.8345,176.58,176.55,2.835]
[1730053260396,6.98018546,176.59,176.54,6.98018546]
[1730053260601,6.98018546,176.59,176.52,4.36]
[1730053260793,6.98018546,176.58,176.52,11.34018546]
[1730053261099,6.98018546,176.57,176.52,11.34018546]
[1730053261298,2.835,176.55,176.52,14.17548546]
[1730053261796,6.98018546,176.54,176.5,5.34199181]
[1730053262000,6.98018546,176.54,176.49,17.88588546]
[1730053262001,2.8355,176.52,176.49,17.88588546]
[1730053262389,2.8355,176.52,176.49,10.9057]
[1730053263000,2.8353,176.53,176.5,2.8358]
[1730053263398,4.36,176.61,176.51,6.98018546]
[1730053263602,6.98018546,176.59,176.52,6.98018546]
[1730053264402,2.8348,176.57,176.53,2.8352]
[1730053265304,2.8348,176.57,176.54,2.8351]
[1730053265708,6.98018546,176.59,176.52,6.98018546]
[1730053265999,2.8346,176.58,176.54,6.98018546]
[1730053266402,2.8346,176.58,176.55,2.8349]
[1730053266802,9.81438546,176.6,176.55,6.98018546]
[1730053266999,9.81438546,176.6,176.56,2.8347]
[1730053267703,2.8342,176.6,176.56,2.8347]
[1730053267901,2.8342,176.6,176.57,2.8347]
[1730053270604,2.8342,176.6,176.57,9.81488546]
[1730053274107,9.81438546,176.6,176.57,2.8347]
[1730053274312,9.81458546,176.59,176.56,2.8347]
[1730053275616,2.835,176.56,176.52,2.8354]
[1730053275797,6.98018546,176.58,176.51,6.98018546]
[1730053276206,2.8348,176.57,176.51,6.98018546]
[1730053276411,2.8348,176.57,176.5,4.36]
[1730053276412,2.8348,176.57,176.53,6.98018546]
[1730053276710,2.8348,176.57,176.53,9.81538546]
[1730053277706,2.8348,176.56,176.53,9.81538546]
[1730053278907,2.8348,176.56,176.53,2.8352]
[1730053279304,6.98018546,176.58,176.53,6.98018546]
[1730053279506,2.8347,176.57,176.54,2.8351]
[1730053280101,6.98018546,176.58,176.5,10.63573]
[1730053280308,2.8349,176.56,176.53,2.8353]
[1730053283316,6.98018546,176.58,176.52,6.98018546]
[1730053283616,4.36,176.63,176.56,6.98018546]
[1730053283815,6.98018546,176.61,176.56,6.98018546]
[1730053285013,6.98018546,176.59,176.54,4.34]
[1730053285311,6.98018546,176.59,176.54,7.175]
[1730053285909,2.8346,176.58,176.55,2.835]
[1730053287317,6.98018546,176.59,176.54,4.34]
[1730053289407,2.8346,176.58,176.55,2.835]
[1730053290807,4.34,176.63,176.55,2.835]
[1730053291112,6.98018546,176.6,176.55,2.835]
[1730053291821,2.8346,176.58,176.55,2.835]
[1730053292410,4.34,176.63,176.55,2.835]
[1730053292811,6.98018546,176.6,176.55,2.835]
[1730053293216,6.98018546,176.59,176.55,2.835]
[1730053293810,2.8345,176.59,176.55,2.835]
[1730053294313,8.4972,176.72,176.55,2.835]
[1730053294314,4.34,176.64,176.55,2.835]
[1730053294808,29.06055638,176.73,176.54,4.34]
[1730053295016,4.34,176.72,176.58,2.8344]
[1730053295216,4.34,176.71,176.56,6.98018546]
[1730053295525,4.34,176.7,176.56,6.98018546]
[1730053295712,6.98018546,176.61,176.56,6.98018546]
[1730053296325,4.34,176.66,176.56,6.98018546]
[1730053296514,9.81428546,176.61,176.58,2.8344]
[1730053297111,6.98018546,176.62,176.58,2.8344]
[1730053297817,4.34,176.66,176.58,2.8344]
[1730053298016,6.98018546,176.62,176.58,2.8344]
[1730053298220,2.834,176.62,176.58,2.8344]
[1730053298421,9.81418546,176.62,176.58,2.8344]
[1730053298619,6.98018546,176.62,176.58,2.8344]
[1730053298818,2.8343,176.6,176.57,2.8346]
[1730053299217,4.34,176.66,176.57,2.8346]
[1730053299423,6.98018546,176.61,176.57,2.8346]
[1730053300020,6.98018546,176.61,176.55,9.43178546]
[1730053300220,6.98018546,176.61,176.56,2.8347]
[1730053300425,6.98018546,176.61,176.55,9.43178546]
[1730053301323,2.8342,176.6,176.57,2.8346]
[1730053303735,2.8342,176.6,176.55,9.43178546]
[1730053303736,2.834,176.62,176.59,2.8343]
[1730053304627,2.834,176.61,176.58,2.8344]
[1730053305336,2.8337,176.64,176.6,2.834]
[1730053305645,6.98018546,176.63,176.6,2.834]
[1730053306435,9.81398546,176.63,176.6,2.834]
[1730053306741,9.81398546,176.63,176.58,4.34]
[1730053306742,9.81398546,176.63,176.58,7.1744]
[1730053308244,2.8339,176.62,176.58,7.1744]
[1730053308646,2.8339,176.62,176.59,2.8343]
[1730053314148,2.8336,176.64,176.61,9.81408546]
[1730053314549,6.98018546,176.67,176.61,6.98018546]
[1730053314951,6.98018546,176.65,176.6,2.8341]
[1730053315151,6.98018546,176.65,176.58,4.34]
[1730053315361,6.98018546,176.65,176.59,6.98018546]
[1730053315843,2.8338,176.63,176.59,2.8342]
[1730053316247,2.8338,176.63,176.59,9.81438546]
[1730053320853,2.8338,176.63,176.6,6.98018546]
[1730053321053,266.4096901,176.68,176.6,6.98018546]
[1730053321263,6.98018546,176.66,176.6,6.98018546]
[1730053321654,2.8337,176.64,176.61,2.834]
[1730053322255,2.8337,176.64,176.62,6.98018546]
[1730053323048,273.38987556,176.68,176.63,6.98018546]
[1730053323258,2.8332,176.66,176.63,9.81378546]
[1730053326065,4.34,176.71,176.62,4.34]
[1730053326066,2.8331,176.67,176.65,6.98018546]
[1730053326454,6.98018546,176.7,176.65,6.98018546]
[1730053326652,2.8332,176.66,176.65,6.98018546]
[1730053327460,4.34,176.74,176.65,6.98018546]
[1730053327761,6.98018546,176.72,176.66,6.98018546]
[1730053327961,2.833,176.68,176.65,6.98018546]
[1730053328351,6.98018546,176.7,176.65,6.98018546]
[1730053328552,2.8332,176.67,176.64,4.34]
[1730053328756,6.98018546,176.69,176.64,4.34]
[1730053329153,4.34,176.74,176.65,6.98018546]
[1730053329154,2.8331,176.67,176.65,6.98018546]
[1730053329353,6.98018546,176.7,176.65,6.98018546]
[1730053330870,2.8332,176.67,176.65,6.98018546]
[1730053331769,2.8328,176.69,176.66,6.98018546]
[1730053331955,17.02,176.81,176.64,4.34]
[1730053331956,6.98018546,176.73,176.68,6.98018546]
[1730053332367,2.8326,176.71,176.67,2.833]
[1730053332557,6.98018546,176.72,176.66,4.34]
[1730053332958,2.8329,176.69,176.66,4.34]
[1730053333370,6.98018546,176.72,176.65,8.23618546]
[1730053333565,6.98018546,176.72,176.66,4.34]
[1730053334470,2.8326,176.7,176.65,12.57618546]
[1730053334671,6.98018546,176.72,176.65,12.57618546]
[1730053334969,2.78852429,176.83,176.71,6.98018546]
[1730053335172,2.78852429,176.83,176.65,5.596]
[1730053335173,6.98018546,176.81,176.72,1.2331]
[1730053335379,6.98018546,176.79,176.73,6.98018546]
[1730053335574,2.8318,176.76,176.73,11.32018546]